bitfinex-derivatives/quotes_ETHF0:USTF0_20250926
["timestamp","ask_amount","ask_price","bid_price","bid_amount"]
[1758885852647,0.3446,3887.6,3887.5,3.2078]
[1758885852946,0.7872,3887.6,3887.5,3.4728]
[1758885854459,0.7872,3887.6,3887.5,3.6897]
[1758885856551,3.02385706,3887.6,3887.5,3.6897]
[1758885856949,3.02385706,3887.6,3887.5,4.70678]
[1758885857258,3.02385706,3887.6,3887.5,3.9165]
[1758885857446,3.48652706,3887.6,3887.5,3.4728]
[1758885857647,3.48652706,3887.6,3887.5,0.265]
[1758885857956,3.02385706,3887.6,3887.5,1.17138]
[1758885858151,3.02385706,3887.6,3887.5,1.49898]
[1758885858553,3.02385706,3887.6,3887.5,1.0363]
[1758885858754,3.02385706,3887.6,3887.5,1.49898]
[1758885860555,3.02385706,3887.6,3887.5,0.7087]
[1758885860755,3.48652706,3887.6,3887.5,0.265]
[1758885861147,8.48652706,3887.6,3887.5,0.265]
[1758885861353,6.24987,3887.6,3887.5,0.265]
[1758885861548,8.48652706,3887.6,3887.5,0.265]
[1758885861748,3.02385706,3887.6,3887.5,0.265]
[1758885861959,3.02385706,3887.6,3887.5,0.7087]
[1758885862467,3.58924144,3887.6,3887.5,1.0363]
[1758885862652,1.35258438,3887.6,3887.5,1.0363]
[1758885863048,3.58924144,3887.6,3887.5,0.7087]
[1758885863248,1.24992,3887.2,3887.1,3.2078]
[1758885863447,3.58929144,3887.2,3887.1,3.4728]
[1758885864055,1.24998,3886.8,3886.7,0.2169]
[1758885864260,3.58935144,3886.8,3886.7,0.265]
[1758885866252,0.44731438,3886.8,3886.7,1.0363]
[1758885866457,0.10271438,3886.8,3886.7,1.0363]
[1758885866754,0.56548438,3886.8,3886.7,1.0363]
[1758885866949,0.65861438,3886.8,3886.7,0.7087]
[1758885867146,0.44731438,3886.8,3886.7,1.0363]
[1758885867358,1.12138438,3886.8,3886.7,0.7087]
[1758885867560,0.65861438,3886.8,3886.7,0.7087]
[1758885867753,1.12138438,3886.8,3886.7,0.7087]
[1758885867953,1.35268438,3886.8,3886.7,0.7087]
[1758885870053,1.35268438,3886.8,3886.7,0.4819]
[1758885870258,0.4628,3886.5,3886.2,0.79044]
[1758885870458,2.79255706,3886.3,3886.2,1.23414]
[1758885870654,2.89527144,3886.3,3886.2,1.49914]
[1758885871656,3.58940144,3886.3,3886.2,0.4819]
[1758885871852,3.58940144,3886.3,3886.2,0.2169]
[1758885872050,0.7872,3885.7,3885.6,3.4247]
[1758885872262,3.58947144,3885.7,3885.6,3.9165]
[1758885872753,3.58947144,3885.7,3885.6,3.6897]
[1758885873765,3.58947144,3885.7,3885.6,3.4728]
[1758885873958,3.58947144,3885.7,3885.6,4.70701]
[1758885873959,0.10271438,3885.7,3885.6,4.70701]
[1758885874162,0.46284,3886.2,3886.1,0.4437]
[1758885874367,0.565725,3886.2,3886.1,1.0363]
[1758885874559,0.910325,3886.2,3886.1,1.0363]
[1758885874758,1.352925,3886.2,3886.1,0.7087]
[1758885875262,1.352925,3886.2,3886.1,0.265]
[1758885877266,1.352925,3886.2,3885.2,40.8]
[1758885877267,0.46294,3885.3,3885.2,40.8]
[1758885877466,0.46294,3885.3,3885.1,3.2078]
[1758885877467,1.25016,3885.2,3885.1,3.4247]
[1758885877766,0.102885,3885.2,3885.1,4.2441]
[1758885878156,0.102885,3885.2,3885.1,3.9165]
[1758885878157,1.097545,3885.2,3885.1,3.9165]
[1758885878362,1.097545,3885.2,3885.1,0.265]
[1758885878363,1.311445,3885.2,3885.1,0.265]
[1758885880278,1.311445,3885.2,3884.6,3.2078]
[1758885880279,1.22432,3884.7,3884.6,3.2078]
[1758885880479,1.22437,3884.3,3884.2,3.1693]
[1758885880675,3.56391206,3884.3,3884.2,3.4343]
[1758885881679,3.56391206,3884.3,3884.2,3.2078]
[1758885881975,1.327255,3884.3,3884.2,3.2078]
[1758885883373,1.327255,3884.3,3884.2,2.9428]
[1758885883573,1.327255,3884.3,3884.2,3.2078]
[1758885883973,1.327255,3884.3,3884.2,0.265]
[1758885884468,0.864185,3884.3,3883.4,3.5411]
[1758885884674,4.47331412,3884.4,3883.4,0.2265]
[1758885884675,3.59211706,3883.5,3883.4,0.2265]
[1758885884876,0.78361,3883.1,3883.0,3.9858]
[1758885885080,0.46321,3883.1,3883.0,4.2508]
[1758885886284,1.22451,3883.1,3883.0,3.9175]
[1758885887785,1.32567123,3883.1,3883.0,3.9175]
[1758885888286,1.22451,3883.1,3883.0,3.9175]
[1758885888981,3.46116706,3883.1,3883.0,3.9175]
[1758885889385,3.46116706,3883.1,3883.0,3.4728]
[1758885889987,3.24726706,3883.1,3883.0,3.9175]
[1758885891091,0.46321,3883.1,3883.0,4.3138]
[1758885891484,0.5474,3883.8,3883.7,0.778]
[1758885891680,2.88511964,3883.8,3883.7,1.043]
[1758885891886,3.56214964,3883.8,3883.7,0.7097]
[1758885892184,0.131,3883.5,3883.3,0.2265]
[1758885892386,3.56218903,3883.4,3883.3,0.2265]
[1758885892591,1.32553197,3883.4,3883.3,0.4915]
[1758885892790,1.32553197,3883.4,3883.3,0.7097]
[1758885893098,1.32553197,3883.4,3883.3,1.043]
[1758885893099,1.01057,3883.4,3883.3,1.043]
[1758885893590,0.46316,3883.5,3883.3,1.17289]
[1758885893786,1.22447,3883.4,3883.3,0.4447]
[1758885893994,1.22451,3883.1,3883.0,3.4343]
[1758885894186,1.22451,3883.1,3883.0,3.6993]
[1758885894387,1.3255793,3883.1,3883.0,3.4728]
[1758885896097,1.22451,3883.1,3883.0,3.4728]
[1758885896288,1.32557626,3883.1,3883.0,3.4728]
[1758885896787,1.32557626,3883.1,3883.0,3.6993]
[1758885897898,0.88467626,3883.1,3883.0,4.2508]
[1758885898196,0.88467626,3883.1,3883.0,3.2078]
[1758885898197,1.32557626,3883.1,3883.0,3.2078]
[1758885898392,1.32557626,3883.1,3883.0,3.4728]
[1758885898897,1.32557626,3883.1,3883.0,3.6993]
[1758885900595,1.32557626,3883.1,3883.0,3.9175]
[1758885901493,0.42146626,3883.1,3883.0,4.38072]
[1758885901696,2.47702329,3886.6,3884.5,0.1389]
[1758885901992,3.2078,3887.5,3886.9,0.46276]
[1758885901993,0.131,3887.0,3886.9,0.46276]
[1758885902298,0.131,3888.5,3887.2,12.7248]
[1758885902601,0.131,3889.0,3888.8,0.46252]
[1758885902789,0.131,3889.0,3888.9,4.975798]
[1758885902987,0.131,3890.0,3888.9,4.975798]
[1758885903292,0.131,3890.0,3889.9,3.89479278]
[1758885903494,3.3388,3890.0,3889.9,4.70467716]
[1758885903693,21.07689076,3890.0,3889.9,4.70467716]
[1758885903885,26.07689076,3890.0,3889.9,4.70467716]
[1758885904085,26.07689076,3890.0,3889.9,3.98196686]
[1758885904398,17.73809076,3889.6,3889.5,1.64619093]
[1758885904592,0.3204,3889.6,3889.5,1.91819093]
[1758885904793,17.73809076,3889.6,3889.5,1.91819093]
[1758885905590,17.73809076,3889.6,3889.5,2.38064093]
[1758885906805,0.3204,3889.6,3889.5,3.09839812]
[1758885907494,1e-05,3889.6,3889.5,3.09839812]
[1758885907895,1e-05,3889.6,3889.5,8.09839812]
[1758885908201,1e-05,3890.0,3889.9,0.4624]
[1758885908403,1e-05,3890.0,3889.9,45.45995719]
[1758885908700,1e-05,3890.0,3889.9,45.18795719]
[1758885908895,1e-05,3890.0,3889.9,4.65995719]
[1758885909297,17.41770076,3890.0,3889.9,3.4798]
[1758885910001,1e-05,3890.0,3889.9,3.4798]
[1758885910296,22.91270076,3890.0,3889.9,3.4788]
[1758885910795,17.91270076,3890.0,3889.9,3.9412]
[1758885911493,17.91270076,3890.0,3889.9,3.4788]
[1758885911899,22.91270076,3890.0,3889.9,3.4788]
[1758885913499,17.91270076,3890.0,3889.9,3.4788]
[1758885915802,0.1947,3889.5,3889.3,0.271]
[1758885916000,0.495,3889.4,3889.3,0.73347]
[1758885916200,17.91269076,3889.4,3889.3,0.73347]
[1758885916398,0.495,3889.4,3889.3,0.73347]
[1758885919604,0.495,3889.4,3889.3,0.73348]
[1758885920507,0.495,3889.4,3889.3,0.46248]
[1758885920706,0.495,3889.4,3889.3,0.73348]
[1758885923204,0.46249,3889.2,3889.1,0.4625]
[1758885923404,18.37518076,3889.2,3889.1,0.7335]
[1758885923595,0.95749,3889.2,3889.1,0.7335]
[1758885924208,0.95749,3889.2,3889.1,1.49150305]
[1758885925108,0.495,3889.2,3889.1,1.49150305]
[1758885925498,0.95749,3889.2,3889.1,1.49150305]
[1758885926298,0.95749,3889.2,3889.1,2.52593911]
[1758885926299,18.37518076,3889.2,3889.1,2.52593911]
[1758885926501,18.37518076,3889.2,3889.1,2.06343911]
[1758885926705,18.37518076,3889.2,3889.1,1.02800305]
[1758885927214,18.37518076,3889.2,3889.1,2.06307715]
[1758885927704,18.37518076,3889.2,3889.1,1.71499583]
[1758885928108,18.37518076,3889.2,3889.1,2.05509699]
[1758885928308,18.37518076,3889.2,3889.1,1.94399342]
[1758885928509,17.91269076,3889.2,3889.1,1.02800305]
[1758885928712,0.495,3889.2,3889.1,1.36819254]
[1758885929006,18.37518076,3889.2,3889.1,1.36819254]
[1758885929402,18.37518076,3889.2,3889.1,1.09819254]
[1758885929706,18.37518076,3889.2,3889.1,2.05565038]
[1758885929908,17.91269076,3889.2,3889.1,2.05565038]
[1758885930106,17.91269076,3889.2,3889.1,2.51815038]
[1758885930308,17.91269076,3889.2,3889.1,1.36819254]
[1758885930309,18.37518076,3889.2,3889.1,1.36819254]
[1758885930507,23.37518076,3889.2,3889.1,2.05575752]
[1758885931204,17.91269076,3889.2,3889.1,2.51825752]
[1758885931404,17.91269076,3889.2,3889.1,1.83069254]
[1758885931712,17.91269076,3889.2,3889.1,3.6751096]
[1758885931913,17.91269076,3889.2,3889.1,1.83069254]
[1758885932210,0.1947,3889.5,3889.4,0.46247]
[1758885932512,17.61239076,3889.5,3889.4,1.83066254]
[1758885932712,17.61239076,3889.5,3889.4,1.49047305]
[1758885934018,18.07484076,3889.5,3889.4,1.02800305]
[1758885934213,18.56984076,3889.5,3889.4,2.87322906]
[1758885934407,18.56984076,3889.5,3889.4,1.02800305]
[1758885934807,18.56984076,3889.5,3889.4,0.75800305]
[1758885934808,19.21364076,3889.5,3889.4,0.75800305]
[1758885935009,19.21364076,3889.5,3889.4,1.02800305]
[1758885935512,19.21364076,3889.5,3889.4,0.75800305]
[1758885935711,19.21364076,3889.5,3889.4,1.02800305]
[1758885937206,19.21364076,3889.5,3889.4,1.49047305]
[1758885937614,18.75119076,3889.5,3889.4,1.49047305]
[1758885937913,19.21364076,3889.5,3889.4,1.02800305]
[1758885939915,1.79595,3889.5,3889.4,1.02800305]
[1758885940116,19.21364076,3889.5,3889.4,1.02800305]
[1758885940316,18.75119076,3889.5,3889.4,1.49047305]
[1758885940516,19.21364076,3889.5,3889.4,1.02800305]
[1758885941920,19.21364076,3889.5,3889.4,1.02700305]
[1758885942113,19.21364076,3889.5,3889.4,0.75800305]
[1758885942314,19.21364076,3889.5,3889.4,1.02700305]
[1758885942510,19.21364076,3889.5,3889.4,0.269]
[1758885943015,0.92838,3889.3,3889.2,1.38535056]
[1758885943219,1.57698,3889.3,3889.2,1.65435056]
[1758885943418,18.99467076,3889.3,3889.2,1.65435056]
[1758885943811,18.99467076,3889.3,3889.2,0.269]
[1758885945509,18.99467076,3889.3,3889.2,1.19261993]
[1758885949915,18.99467076,3889.3,3889.2,0.269]
[1758885950218,1.57698,3889.3,3889.2,1.65510993]
[1758885950622,1.57698,3889.3,3889.2,1.19261993]
[1758885951224,1.57698,3889.3,3889.2,0.269]
[1758885951719,1.57698,3889.3,3889.2,1.19285209]
[1758885951917,1.57698,3889.3,3889.2,1.65534209]
[1758885952220,1.57698,3889.3,3889.2,1.19287141]
[1758885953621,1.1145,3889.3,3889.2,0.73149]
[1758885954416,1.1145,3889.3,3889.2,2.11754823]
[1758885954927,1.1145,3889.3,3889.2,0.73149]
[1758885955523,1.57698,3889.3,3889.2,0.73149]
[1758885956024,1.1145,3889.3,3889.2,0.73149]
[1758885956522,1.57698,3889.3,3889.2,0.73149]
[1758885957224,1.1145,3889.3,3889.2,2.11741197]
[1758885959126,1.57698,3889.3,3889.2,1.84841197]
[1758885959328,1.57698,3889.3,3889.2,0.73049]
[1758885959526,1.1145,3889.3,3889.2,0.73049]
[1758885960123,1.1145,3889.3,3889.2,2.11641197]
[1758885960325,1.1145,3889.3,3889.2,0.73049]
[1758885960534,0.7861,3889.3,3889.2,5.73049]
[1758885960926,1e-05,3890.0,3889.9,0.46241]
[1758885961124,0.32021,3890.0,3889.9,3.93821]
[1758885961627,1e-05,3890.0,3889.9,8.93821]
[1758885961830,1e-05,3890.0,3889.9,16.51668523]
[1758885962334,1e-05,3890.0,3889.9,57.31668523]
[1758885962631,1e-05,3890.0,3889.9,59.16414978]
[1758885963031,0.1947,3891.0,3890.9,0.46229]
[1758885963227,0.1947,3891.0,3890.9,3.93809]
[1758885963430,0.1947,3891.0,3890.9,8.93809]
[1758885963935,0.3202,3891.5,3891.4,0.46223]
[1758885964238,0.5024,3892.0,3891.9,0.46217]
[1758885964533,0.1822,3892.0,3891.9,3.93797]
[1758885965124,0.6481,3892.0,3891.9,3.93797]
[1758885965529,0.6481,3892.0,3891.9,4.62676627]
[1758885966136,0.6481,3892.0,3891.9,4.35876627]
[1758885966436,0.6481,3892.0,3891.9,3.66997]
[1758885966632,0.6481,3892.0,3891.9,3.93797]
[1758885969127,0.9683,3892.0,3891.9,3.66997]
[1758885969436,18.70709076,3892.0,3891.9,3.4748]
[1758885969932,1.2894,3892.0,3891.9,3.4748]
[1758885970140,18.70709076,3892.0,3891.9,3.4748]
[1758885970832,18.70709076,3892.0,3891.9,3.2078]
[1758885971141,1.1393,3891.7,3891.6,0.4622]
[1758885971334,1.1393,3891.7,3891.6,0.7292]
[1758885971645,18.55699076,3891.7,3891.6,0.4622]
[1758885971940,18.55699076,3891.7,3891.6,0.7292]
[1758885972829,18.55699076,3891.7,3891.5,3.67002]
[1758885972830,1.1393,3891.6,3891.5,3.67002]
[1758885973032,1.1393,3891.6,3891.5,3.93702]
[1758885973838,18.55699076,3891.6,3891.5,3.93702]
[1758885974532,19.01920076,3891.6,3891.5,3.93702]
[1758885974742,19.01920076,3891.6,3891.5,3.4748]
[1758885975239,1.60155,3891.2,3891.1,3.2078]
[1758885975428,19.01924076,3891.2,3891.1,3.4748]
[1758885976135,19.01924076,3891.2,3891.1,3.2078]
[1758885976435,1.1393,3890.8,3890.7,3.67011]
[1758885976638,18.55699076,3890.8,3890.7,3.93711]
[1758885977334,18.55699076,3890.8,3890.7,3.4748]
[1758885977534,18.55699076,3890.8,3890.7,3.93712]
[1758885977932,18.55699076,3890.8,3890.7,3.4748]
[1758885978127,19.01929076,3890.8,3890.7,3.93712]
[1758885978340,19.01929076,3890.8,3890.7,3.4748]
[1758885978739,19.01929076,3890.8,3890.7,3.93712]
[1758885979036,18.55699076,3890.8,3890.7,3.93712]
[1758885979243,19.01929076,3890.8,3890.7,3.93712]
[1758885979636,19.01929076,3890.8,3890.7,3.4748]
[1758885979832,19.01929076,3890.8,3890.7,3.2078]
[1758885980040,19.01929076,3890.8,3890.7,3.4748]
[1758885980336,24.01929076,3890.8,3890.7,0.267]
[1758885981537,1.60165,3890.4,3890.3,3.2078]
[1758885981737,19.01934076,3890.4,3890.3,3.4748]
[1758885982240,19.01934076,3890.4,3890.3,0.267]
[1758885983738,1.2998,3890.0,3889.9,3.2078]
[1758885983938,19.20949076,3890.0,3889.9,3.93721]
[1758885984142,19.20949076,3890.0,3889.9,3.4748]
[1758885986941,19.20949076,3890.0,3889.9,0.267]
[1758885992951,0.6821,3890.0,3889.9,0.72941]
[1758885993152,1.7918,3890.0,3889.9,0.267]
[1758885994047,1.7918,3890.0,3889.9,0.72941]
[1758885994449,1.7918,3890.0,3889.9,0.267]
[1758885995057,1.7918,3890.0,3889.9,0.72941]
[1758885995649,1.3294,3890.0,3889.9,0.72941]
[1758885995857,1.3294,3890.0,3889.9,3.93721]
[1758885996252,1.3294,3890.0,3889.9,4.62600627]
[1758885996553,0.0257,3890.1,3890.0,0.4624]
[1758885996757,0.0257,3890.1,3890.0,9.41902908]
[1758885997055,0.0257,3890.1,3890.0,14.41902908]
[1758885997254,0.0257,3890.1,3890.0,13.04087523]
[1758885997558,0.0257,3890.1,3890.0,53.84087523]
[1758885998853,0.5258,3890.1,3890.0,53.84087523]
[1758885999554,0.5258,3890.1,3890.0,48.84087523]
[1758886000153,0.0257,3890.1,3890.0,48.84087523]
[1758886000360,0.6902,3890.5,3890.4,0.46235]
[1758886000553,0.6902,3890.5,3890.4,11.51462523]
[1758886000754,0.6902,3890.5,3890.4,16.51462523]
[1758886001059,0.1901,3890.5,3890.4,18.35487018]
[1758886001250,0.1901,3890.5,3890.4,59.15487018]
[1758886001451,0.6902,3890.5,3890.4,59.27950871]
[1758886001652,0.6902,3890.5,3890.4,46.31035077]
[1758886001852,0.6902,3890.5,3890.4,86.67135077]
[1758886002658,0.6902,3890.5,3890.4,92.40962523]
[1758886003463,0.6902,3890.5,3890.4,97.40962523]
[1758886004861,0.1901,3891.0,3890.9,0.46229]
[1758886005057,0.1901,3891.0,3890.9,3.93509]
[1758886006856,0.6902,3891.0,3890.9,3.93509]
[1758886007661,0.8303,3892.0,3891.9,0.77347]
[1758886007859,0.8303,3892.0,3891.9,4.56387]
[1758886008158,17.91569076,3892.0,3891.9,4.92957]
[1758886008362,0.4961,3892.5,3892.4,1.09101]
[1758886008562,0.8284,3892.5,3892.4,5.25283457]
[1758886008965,18.24609076,3892.5,3892.4,4.56381]
[1758886009264,18.24609076,3892.5,3892.4,5.84715897]
[1758886009764,18.74619076,3892.5,3892.4,5.84715897]
[1758886009959,18.74619076,3892.5,3892.4,4.56381]
[1758886011160,18.74619076,3892.5,3892.4,4.29881]
[1758886011355,18.74619076,3892.5,3892.4,5.25128724]
[1758886011968,18.74619076,3892.5,3892.4,4.56381]
[1758886012168,18.74619076,3892.5,3892.4,5.25123758]
[1758886013367,18.74619076,3892.5,3892.4,4.56381]
[1758886013566,18.74619076,3892.5,3892.4,3.93491]
[1758886014274,18.74619076,3892.5,3892.4,3.4728]
[1758886014275,23.74619076,3892.5,3892.4,3.4728]
[1758886014777,18.74619076,3892.5,3892.4,3.4728]
[1758886015069,18.74619076,3892.5,3892.4,3.93491]
[1758886015268,19.20829076,3892.5,3892.4,3.93491]
[1758886015670,19.20829076,3892.5,3892.4,3.4728]
[1758886016574,19.20829076,3892.5,3892.4,3.93491]
[1758886016774,18.74619076,3892.5,3892.4,3.93491]
[1758886016975,18.74619076,3892.5,3892.4,4.56381]
[1758886017878,18.74619076,3892.5,3892.4,3.93491]
[1758886018274,19.20829076,3892.5,3892.4,3.4728]
[1758886018474,18.74619076,3892.5,3892.4,3.93491]
[1758886018673,19.20829076,3892.5,3892.4,3.93491]
[1758886019279,19.20829076,3892.5,3892.4,3.4728]
[1758886019477,19.20829076,3892.5,3892.4,3.2078]
[1758886019676,19.20829076,3892.5,3892.4,3.4728]
[1758886020475,24.20829076,3892.5,3892.4,3.4728]
[1758886021082,19.20829076,3892.5,3892.4,3.4728]
[1758886021276,18.74619076,3892.5,3892.4,3.4728]
[1758886021477,19.20829076,3892.5,3892.4,3.4728]
[1758886021679,18.74619076,3892.5,3892.4,3.93491]
[1758886021876,1.3285,3892.5,3892.4,4.56381]
[1758886022675,1.3285,3892.5,3892.4,5.25123758]
[1758886022878,1.3285,3892.5,3892.4,4.56381]
[1758886023476,0.5001,3892.5,3892.4,4.92951]
[1758886023975,0.808,3892.5,3892.4,4.56381]
[1758886024176,0.9962,3892.5,3892.4,4.56381]
[1758886024979,1.3285,3892.5,3892.4,4.56381]
[1758886025181,0.1882,3893.0,3892.5,1.15524]
[1758886025382,0.0256,3893.1,3893.0,1.2838]
[1758886025583,0.0256,3893.1,3893.0,2.69891791]
[1758886025878,17.41769076,3893.1,3893.0,2.01084]
[1758886026279,17.41769076,3893.1,3893.0,2.92833841]
[1758886026479,17.41769076,3893.1,3893.0,2.01084]
[1758886026480,18.07849076,3893.1,3893.0,2.01084]
[1758886026680,18.07849076,3893.1,3893.0,0.46204]
[1758886026885,18.07849076,3893.1,3893.0,0.72704]
[1758886027277,18.55229076,3893.1,3893.0,0.72704]
[1758886027486,18.55229076,3893.1,3893.0,1.4154846]
[1758886027791,18.55229076,3893.1,3893.0,0.72704]
[1758886028480,18.55229076,3893.1,3893.0,1.4154846]
[1758886028792,19.01432076,3893.1,3893.0,0.72704]
[1758886029380,19.01432076,3893.1,3893.0,0.265]
[1758886029381,24.01432076,3893.1,3893.0,0.265]
[1758886029883,6.59663,3893.1,3893.0,0.265]
[1758886030085,1.09184,3893.0,3892.9,3.2078]
[1758886030286,18.89033076,3893.0,3892.9,3.4728]
[1758886030680,0.46208,3892.7,3892.6,0.4916]
[1758886030880,17.87977076,3892.7,3892.6,0.7566]
[1758886031086,17.41769076,3892.7,3892.6,1.86249]
[1758886031282,17.41769076,3892.7,3892.6,1.4004]
[1758886031481,17.87977076,3892.7,3892.6,0.7566]
[1758886032189,22.87977076,3892.7,3892.6,0.7566]
[1758886037086,23.14477076,3892.7,3892.6,0.4916]
[1758886037385,22.87977076,3892.7,3892.6,0.4916]
[1758886037592,23.14477076,3892.7,3892.6,0.4916]
[1758886037782,26.35257076,3892.7,3892.6,0.4916]
[1758886038084,26.35257076,3892.7,3892.5,0.1901]
[1758886038085,0.46209,3892.6,3892.5,0.1901]
[1758886038283,0.46215,3892.1,3891.8,0.9534446]
[1758886038483,17.87984076,3892.1,3892.0,1.0956]
[1758886039483,0.46215,3892.1,3892.0,1.0956]
[1758886040088,0.46215,3892.1,3892.0,1.5872]
[1758886040585,17.87984076,3892.1,3892.0,1.63475901]
[1758886041283,17.87984076,3892.1,3892.0,1.96105901]
[1758886043291,21.08764076,3892.1,3892.0,0.9434]
[1758886043798,21.08764076,3892.1,3892.0,1.5872]
[1758886044884,17.87984076,3892.1,3892.0,1.5872]
[1758886045290,17.87984076,3892.1,3892.0,0.6784]
[1758886045490,21.08764076,3892.1,3892.0,0.6784]
[1758886046093,26.08764076,3892.1,3892.0,0.1868]
[1758886046391,26.08764076,3892.1,3892.0,0.6784]
[1758886046902,21.08764076,3892.1,3892.0,0.6784]
[1758886047990,21.08764076,3892.1,3892.0,1.3222]
[1758886048192,3.66995,3892.1,3892.0,1.3222]
[1758886049195,0.46215,3892.1,3892.0,0.8306]
[1758886049394,0.46215,3892.1,3892.0,1.3222]
[1758886049595,0.46215,3892.1,3892.0,1.78436]
[1758886049902,0.46215,3892.1,3892.0,1.3222]
[1758886050101,17.87984076,3892.1,3892.0,0.6784]
[1758886050595,21.08764076,3892.1,3892.0,0.6784]
[1758886050800,17.87984076,3892.1,3892.0,1.0047]
[1758886051198,17.87984076,3892.1,3892.0,1.78436]
[1758886052400,0.46214,3892.3,3892.2,0.46212]
[1758886052598,0.46211,3892.4,3892.3,1.1354]
[1758886052803,0.46211,3892.4,3892.3,1.4004]
[1758886053002,17.87980076,3892.4,3892.3,1.4004]
[1758886053393,3.6699,3892.5,3892.4,0.46211]
[1758886053597,17.41769076,3892.5,3892.4,1.59751]
[1758886053996,17.87979076,3892.5,3892.4,1.59751]
[1758886054799,3.2078,3893.3,3893.2,0.3263]
[1758886055006,3.6698,3893.3,3893.2,0.8179]
[1758886055206,0.462,3893.3,3893.2,0.8179]
[1758886055408,17.87969076,3893.3,3893.2,0.8179]
[1758886055906,21.08749076,3893.3,3893.2,0.8179]
[1758886056096,21.08749076,3893.3,3893.2,0.4916]
[1758886056499,0.46203,3893.1,3893.0,0.6817]
[1758886056707,18.14472076,3893.1,3893.0,0.1901]
[1758886057295,0.46207,3892.7,3892.6,0.4916]
[1758886057513,21.08756076,3892.7,3892.6,0.4916]
[1758886058012,21.08756076,3892.7,3892.0,1.10429841]
[1758886058013,0.46213,3892.2,3892.1,0.69046542]
[1758886058214,0.46214,3892.1,3892.0,0.87726542]
[1758886058507,17.87983076,3892.1,3892.0,0.87726542]
[1758886059108,17.9533952,3892.1,3892.0,0.1868]
[1758886059308,17.87983076,3892.1,3892.0,0.1868]
[1758886059705,17.87983076,3892.1,3892.0,0.5224]
[1758886059910,0.46214,3892.1,3892.0,0.842]
[1758886060107,3.66987,3892.7,3892.6,0.4882]
[1758886060311,3.66987,3892.7,3892.5,0.186]
[1758886060312,0.46209,3892.6,3892.5,0.186]
[1758886060513,0.46211,3892.4,3892.3,0.4882]
[1758886060700,0.72711,3892.4,3892.3,0.4882]
[1758886060904,18.14480076,3892.4,3892.3,0.4882]
[1758886061603,17.87980076,3892.4,3892.3,0.4882]
[1758886061912,0.46214,3892.1,3892.0,0.675]
[1758886062111,21.08763076,3892.1,3892.0,0.675]
[1758886062802,21.35263076,3892.1,3892.0,0.675]
[1758886063801,21.35263076,3892.1,3892.0,1.3302]
[1758886064005,21.35263076,3892.1,3892.0,1.0106]
[1758886064208,21.35263076,3892.1,3892.0,0.1868]
[1758886065803,17.87988076,3891.7,3891.6,0.4882]
[1758886066009,21.08768076,3891.7,3891.6,0.4882]
[1758886067108,21.35268076,3891.7,3891.6,0.4882]
[1758886068201,21.35268076,3891.7,3891.6,0.8238]
[1758886068404,21.08768076,3891.7,3891.6,0.8238]
[1758886068611,0.46219,3891.7,3891.6,1.1434]
[1758886069313,0.46219,3891.7,3891.6,1.6056]
[1758886069513,0.46219,3891.7,3891.6,1.1434]
[1758886071010,0.46219,3891.7,3891.6,1.6056]
[1758886071711,0.46219,3891.7,3891.6,1.1434]
[1758886073215,3.2078,3891.8,3891.7,1.60559]
[1758886073426,3.2078,3892.2,3892.1,1.60554]
[1758886073616,3.66993,3892.2,3892.1,2.56179586]
[1758886073810,0.4621,3892.5,3892.1,2.09965586]
[1758886074118,0.46207,3892.7,3892.6,1.1434]
[1758886074817,17.87976076,3892.7,3892.6,0.4882]
[1758886075816,18.14476076,3892.7,3892.6,0.4882]
[1758886076011,0.46208,3892.6,3892.5,0.186]
[1758886076336,17.87977076,3892.6,3892.5,0.6742]
[1758886080313,17.87977076,3892.6,3892.5,1.3294]
[1758886080514,18.14477076,3892.6,3892.5,1.3294]
[1758886080819,17.87977076,3892.6,3892.5,1.3294]
[1758886081020,18.14477076,3892.6,3892.5,1.3294]
[1758886081225,18.14477076,3892.6,3892.5,0.6742]
[1758886081913,21.35257076,3892.6,3892.5,0.6742]
[1758886082421,21.08757076,3892.6,3892.5,1.0098]
[1758886082619,21.35257076,3892.6,3892.5,1.0098]
[1758886082921,21.35257076,3892.6,3892.5,0.6742]
[1758886083519,21.35257076,3892.6,3892.5,0.186]
[1758886083927,21.35257076,3892.6,3892.5,0.6742]
[1758886084508,23.58370216,3892.6,3892.5,0.6742]
[1758886089116,23.31870216,3892.6,3892.5,0.9983]
[1758886089325,23.58370216,3892.6,3892.5,0.9983]
[1758886089826,23.58370216,3892.6,3892.5,0.6742]
[1758886090026,6.1660114,3892.6,3892.5,0.6742]
[1758886090327,23.58370216,3892.6,3892.5,0.6742]
[1758886090521,23.31870216,3892.6,3892.5,0.6742]
[1758886090729,23.58370216,3892.6,3892.5,0.6742]
[1758886091825,23.31870216,3892.6,3892.5,1.2967]
[1758886092016,3.66988,3892.6,3892.5,1.2967]
[1758886092720,3.2078,3892.6,3892.5,1.7588]
[1758886092929,0.0256,3892.7,3892.6,0.94768]
[1758886093124,0.0256,3892.7,3892.6,9.49277225]
[1758886093319,0.0256,3892.7,3892.6,8.8013114]
[1758886093830,0.0256,3892.7,3892.6,9.71880981]
[1758886096023,0.48767,3892.7,3892.6,9.71880981]
[1758886096218,0.0256,3892.7,3892.6,7.48767841]
[1758886098429,0.48767,3892.7,3892.6,2.02559841]
[1758886098625,0.48767,3892.7,3892.6,1.3731]
[1758886100039,0.48767,3892.7,3892.6,1.83518]
[1758886100236,0.48767,3892.7,3892.6,1.3731]
[1758886100440,0.48767,3892.7,3892.6,2.06366965]
[1758886100829,0.0256,3892.7,3892.6,1.3731]
[1758886101032,0.0256,3892.7,3892.6,4.0663214]
[1758886101537,0.48767,3892.7,3892.6,4.0663214]
[1758886101846,0.48767,3892.7,3892.6,1.3731]
[1758886102331,0.48767,3892.7,3892.6,2.29059841]
[1758886102534,0.48767,3892.7,3892.6,2.75268841]
[1758886102739,0.48767,3892.7,3892.6,1.83519]
[1758886103641,0.48767,3892.7,3892.6,1.3731]
[1758886103937,2.7188014,3892.7,3892.6,1.3731]